fUST/lending_fUST_20250220
["ID","MTS","AMOUNT","RATE_DAILY","PERIOD"]
[353731570,1739999449109,-500.0,0.00014767,2]
[353731572,1739999449119,-500.0,0.00014767,2]
[353731573,1739999449130,-500.0,0.00014767,2]
[353731575,1739999449139,-500.0,0.00014767,2]
[353731577,1739999449149,-500.0,0.00014767,2]
[353731579,1739999449162,-500.0,0.00014767,2]
[353731581,1739999449173,-566.59,0.00014767,2]
[353731582,1739999449183,-500.0,0.00014767,2]
[353731584,1739999449193,-500.0,0.00014767,2]
[353731586,1739999449204,-500.0,0.00014767,2]
[353731588,1739999449214,-6868.74,0.00014767,2]
[353731590,1739999449224,-500.0,0.00014767,2]
[353731592,1739999449234,-667.9,0.00014767,2]
[353731593,1739999449245,-2096.92,0.00014767,2]
[353731595,1739999449255,-641.26,0.00014767,2]
[353731597,1739999449268,-830.19,0.00014767,2]
[353731599,1739999449280,-680.44,0.00014767,2]
[353731601,1739999449290,-500.0,0.00014767,2]
[353731603,1739999449301,-500.0,0.00014767,2]
[353731605,1739999449311,-500.0,0.00014767,2]
[353731607,1739999449321,-701.69,0.00014767,2]
[353731608,1739999449331,-500.0,0.00014767,2]
[353731610,1739999449342,-500.0,0.00014767,2]
[353731612,1739999449352,-1416.58,0.00014767,2]
[353731614,1739999449363,-4013.9,0.00014767,2]
[353731616,1739999449373,-882.26,0.00014767,2]
[353731618,1739999449384,-1582.3,0.00014767,2]
[353731620,1739999449394,-776.39,0.00014767,2]
[353731622,1739999449406,-598.75986233,0.00014767,2]
[353731623,1739999449416,-500.0,0.00014767,2]
[353731625,1739999449426,-500.0,0.00014767,2]
[353731627,1739999449436,-1639.66,0.00014767,2]
[353731629,1739999449446,-1526.88,0.00014767,2]
[353731631,1739999449456,-1005.63,0.00014767,2]
[353731633,1739999449466,-500.0,0.00014767,2]
[353731635,1739999449476,-858.33,0.00014767,2]
[353731636,1739999449486,-500.0,0.00014767,2]
[353731638,1739999449496,-596.87,0.00014767,2]
[353731640,1739999449506,-971.37,0.00014767,2]
[353731642,1739999449516,-2336.54,0.00014767,2]
[353731644,1739999449526,-1405.18,0.00014767,2]
[353731646,1739999449536,-2341.54,0.00014767,2]
[353731648,1739999449546,-20331.06,0.00014767,2]
[353731649,1739999449555,-500.0,0.00014767,2]
[353731651,1739999449565,-909.57,0.00014767,2]
[353731653,1739999449575,-799.61,0.00014767,2]
[353731655,1739999449586,-722.94,0.00014767,2]
[353731657,1739999449597,-929.21,0.00014767,2]
[353731659,1739999449607,-715.3,0.00014767,2]
[353731660,1739999449616,-560.6,0.00014767,2]
[353731662,1739999449625,-1857.67,0.00014767,2]
[353731664,1739999449635,-160.25484314,0.00014774,2]
[353731665,1739999449644,-1000.50517202,0.00014795,2]
[353731667,1739999449654,-151.0,0.000148,2]
[353731669,1739999449664,-500.0,0.00014849,2]
[353731671,1739999449673,-500.0,0.00014849,2]
[353731673,1739999449683,-500.0,0.00014849,2]
[353731675,1739999449693,-500.0,0.00014849,2]
[353731676,1739999449703,-500.0,0.00014849,2]
[353731678,1739999449712,-169.86191629,0.00014849,2]
[353731680,1739999449722,-500.0,0.00014849,2]
[353731682,1739999449731,-500.0,0.00014849,2]
[353731684,1739999449742,-566.59,0.00014849,2]
[353731686,1739999449751,-500.0,0.00014849,2]
[353731688,1739999449761,-500.0,0.00014849,2]
[353731690,1739999449771,-500.0,0.00014849,2]
[353731691,1739999449780,-6868.74,0.00014849,2]
[353731693,1739999449790,-500.0,0.00014849,2]
[353731695,1739999449801,-667.9,0.00014849,2]
[353731697,1739999449811,-2096.92,0.00014849,2]
[353731699,1739999449821,-641.26,0.00014849,2]
[353731701,1739999449830,-830.19,0.00014849,2]
[353731703,1739999449840,-680.44,0.00014849,2]
[353731705,1739999449849,-282.31763371,0.00014849,2]
[353731706,1739999449860,-500.0,0.00014849,2]
[353731708,1739999449869,-500.0,0.00014849,2]
[353731710,1739999449878,-701.69,0.00014849,2]
[353731712,1739999449888,-500.0,0.00014849,2]
[353731714,1739999449898,-500.0,0.00014849,2]
[353731716,1739999449909,-1416.58,0.00014849,2]
[353731718,1739999449918,-4013.9,0.00014849,2]
[353731719,1739999449928,-882.26,0.00014849,2]
[353731721,1739999449939,-1582.3,0.00014849,2]
[353731723,1739999449949,-776.39,0.00014849,2]
[353731725,1739999449958,-500.0,0.00014849,2]
[353731727,1739999449969,-500.0,0.00014849,2]
[353731729,1739999449979,-1526.88,0.00014849,2]
[353731731,1739999449989,-1639.66,0.00014849,2]
[353731733,1739999449999,-1005.63,0.00014849,2]
[353731735,1739999450008,-500.0,0.00014849,2]
[353731736,1739999450018,-858.33,0.00014849,2]
[353731738,1739999450027,-500.0,0.00014849,2]
[353731740,1739999450037,-596.87,0.00014849,2]
[353731742,1739999450046,-971.37,0.00014849,2]
[353731744,1739999450056,-2336.54,0.00014849,2]
[353731746,1739999450065,-1405.18,0.00014849,2]
[353731748,1739999450075,-2341.54,0.00014849,2]
[353731750,1739999450085,-20331.06,0.00014849,2]
[353731751,1739999450094,-909.57,0.00014849,2]
[353731753,1739999450104,-799.61,0.00014849,2]
[353731755,1739999450113,-722.94,0.00014849,2]
[353731757,1739999450123,-929.21,0.00014849,2]
[353731759,1739999450133,-715.3,0.00014849,2]
[353731761,1739999450142,-560.6,0.00014849,2]
[353731762,1739999450152,-1857.67,0.00014849,2]
[353731764,1739999450162,-500.0,0.00014873,2]
[353731766,1739999450172,-500.0,0.00014873,2]
[353731768,1739999450181,-184.97113629,0.00014873,2]
[353731770,1739999450191,-500.0,0.00014873,2]
[353731772,1739999450201,-500.0,0.00014873,2]
[353731774,1739999450211,-500.0,0.00014873,2]
[353731775,1739999450221,-500.0,0.00014873,2]
[353731777,1739999450230,-432.45843681,0.000149,2]
[353731779,1739999450240,-432.45843679,0.000149,2]
[353731781,1739999450249,-432.45843679,0.000149,2]
[353731783,1739999450259,-690621.276692,0.000149,2]
[353731785,1739999450272,-500.0,0.00014931,2]
[353731786,1739999450282,-500.0,0.00014931,2]
[353731788,1739999450292,-500.0,0.00014931,2]
[353731790,1739999450301,-500.0,0.00014931,2]
[353731792,1739999450312,-500.0,0.00014931,2]
[353731794,1739999450322,-500.0,0.00014931,2]
[353731796,1739999450333,-500.0,0.00014931,2]
[353731798,1739999450343,-566.59,0.00014931,2]
[353731800,1739999450355,-500.0,0.00014931,2]
[353731802,1739999450364,-500.0,0.00014931,2]
[353731804,1739999450374,-500.0,0.00014931,2]
[353731805,1739999450383,-6868.74,0.00014931,2]
[353731807,1739999450393,-500.0,0.00014931,2]
[353731809,1739999450404,-667.9,0.00014931,2]
[353731811,1739999450414,-2096.92,0.00014931,2]
[353731813,1739999450424,-641.26,0.00014931,2]
[353731815,1739999450433,-830.19,0.00014931,2]
[353731817,1739999450443,-680.44,0.00014931,2]
[353731819,1739999450453,-500.0,0.00014931,2]
[353731820,1739999450463,-500.0,0.00014931,2]
[353731822,1739999450472,-701.69,0.00014931,2]
[353731824,1739999450482,-1416.58,0.00014931,2]
[353731827,1739999450492,-500.0,0.00014931,2]
[353731828,1739999450501,-4013.9,0.00014931,2]
[353731830,1739999450511,-882.26,0.00014931,2]
[353731832,1739999450521,-1582.3,0.00014931,2]
[353731835,1739999450531,-776.39,0.00014931,2]
[353731837,1739999450541,-500.0,0.00014931,2]
[353731839,1739999450551,-191.39475227,0.00014931,2]
[353731841,1739999450561,-1526.88,0.00014931,2]
[353731843,1739999450571,-1639.66,0.00014931,2]
[353731845,1739999450580,-1005.63,0.00014931,2]
[353731847,1739999450589,-500.0,0.00014931,2]
[353731849,1739999450599,-858.33,0.00014931,2]
[353731851,1739999450608,-500.0,0.00014931,2]
[353731853,1739999450617,-596.87,0.00014931,2]
[353731855,1739999450627,-971.37,0.00014931,2]
[353731857,1739999450639,-2336.54,0.00014931,2]
[353731859,1739999450648,-1405.18,0.00014931,2]
[353731861,1739999450659,-2341.54,0.00014931,2]
[353731863,1739999450667,-20331.06,0.00014931,2]
[353731865,1739999450676,-909.57,0.00014931,2]
[353731867,1739999450686,-799.61,0.00014931,2]
[353731869,1739999450695,-722.94,0.00014931,2]
[353731871,1739999450704,-929.21,0.00014931,2]
[353731873,1739999450714,-715.3,0.00014931,2]
[353731875,1739999450724,-560.6,0.00014931,2]
[353731877,1739999450733,-1857.67,0.00014931,2]
[353731879,1739999450743,-2108.37998735,0.00015,2]
[353731881,1739999450752,-500.0,0.00015013,2]
[353731883,1739999450762,-371.59280652,0.00015013,2]
[353731885,1739999450771,-500.0,0.00015013,2]
[353731886,1739999450781,-500.0,0.00015013,2]
[353731888,1739999450790,-500.0,0.00015013,2]
[353731890,1739999450800,-500.0,0.00015013,2]
[353731892,1739999450809,-566.59,0.00015013,2]
[353731895,1739999450819,-519.98,0.00015013,2]
[353731897,1739999450829,-500.0,0.00015013,2]
[353731899,1739999450839,-500.0,0.00015013,2]
[353731900,1739999450848,-6868.74,0.00015013,2]
[353731902,1739999450858,-286.8149384,0.00015013,2]
[353731904,1739999450867,-667.9,0.00015013,2]
[353731906,1739999450877,-2096.92,0.00015013,2]
[353731908,1739999450886,-641.26,0.00015013,2]
[353731910,1739999450895,-830.19,0.00015013,2]
[353731912,1739999450905,-680.44,0.00015013,2]
[353731914,1739999450915,-500.0,0.00015013,2]
[353731916,1739999450924,-701.69,0.00015013,2]
[353731918,1739999450935,-1416.58,0.00015013,2]
[353731920,1739999450945,-500.0,0.00015013,2]
[353731922,1739999450954,-4013.9,0.00015013,2]
[353731924,1739999450964,-882.26,0.00015013,2]
[353731926,1739999450974,-1582.3,0.00015013,2]
[353731928,1739999450984,-776.39,0.00015013,2]
[353731930,1739999450993,-374.76,0.00015013,2]
[353731932,1739999451003,-1526.88,0.00015013,2]
[353731934,1739999451013,-1639.66,0.00015013,2]
[353731936,1739999451023,-1005.63,0.00015013,2]
[353731938,1739999451033,-500.0,0.00015013,2]
[353731940,1739999451043,-858.33,0.00015013,2]
[353731942,1739999451052,-500.0,0.00015013,2]
[353731944,1739999451061,-596.87,0.00015013,2]
[353731945,1739999451070,-971.37,0.00015013,2]
[353731946,1739999451080,-2336.54,0.00015013,2]
[353731947,1739999451090,-1405.18,0.00015013,2]
[353731948,1739999451099,-2341.54,0.00015013,2]
[353731949,1739999451109,-20331.06,0.00015013,2]
[353731950,1739999451119,-909.57,0.00015013,2]
[353731951,1739999451129,-799.61,0.00015013,2]
[353731952,1739999451138,-722.94,0.00015013,2]
[353731953,1739999451148,-929.21,0.00015013,2]
[353731954,1739999451158,-715.3,0.00015013,2]
[353731955,1739999451168,-560.6,0.00015013,2]
[353731956,1739999451178,-1857.67,0.00015013,2]
[353731957,1739999451188,-500.0,0.00015095,2]
[353731958,1739999451197,-500.0,0.00015095,2]
[353731959,1739999451206,-500.0,0.00015095,2]
[353731960,1739999451216,-500.0,0.00015095,2]
[353731961,1739999451226,-500.0,0.00015095,2]
[353731962,1739999451235,-566.59,0.00015095,2]
[353731963,1739999451245,-500.0,0.00015095,2]
[353731964,1739999451255,-500.0,0.00015095,2]
[353731965,1739999451266,-6868.74,0.00015095,2]
[353731966,1739999451277,-667.9,0.00015095,2]
[353731967,1739999451288,-2096.92,0.00015095,2]
[353731968,1739999451298,-641.26,0.00015095,2]
[353731969,1739999451309,-830.19,0.00015095,2]
[353731970,1739999451319,-680.44,0.00015095,2]
[353731971,1739999451329,-500.0,0.00015095,2]
[353731972,1739999451339,-701.69,0.00015095,2]
[353731973,1739999451350,-1416.58,0.00015095,2]
[353731974,1739999451360,-224.78,0.00015095,2]
[353731975,1739999451371,-4013.9,0.00015095,2]
[353731977,1739999451381,-882.26,0.00015095,2]
[353731978,1739999451390,-1582.3,0.00015095,2]
[353731980,1739999451400,-776.39,0.00015095,2]
[353731983,1739999451410,-1639.66,0.00015095,2]
[353731997,1739999451419,-1526.88,0.00015095,2]
[353732000,1739999451547,-1005.63,0.00015095,2]
[353732002,1739999451557,-500.0,0.00015095,2]
[353732004,1739999451566,-858.33,0.00015095,2]
[353732006,1739999451576,-500.0,0.00015095,2]
[353732008,1739999451585,-596.87,0.00015095,2]
[353732010,1739999451594,-971.37,0.00015095,2]
[353732012,1739999451604,-2336.54,0.00015095,2]
[353732014,1739999451613,-1405.18,0.00015095,2]
[353732016,1739999451623,-2341.54,0.00015095,2]
[353732018,1739999451632,-20331.06,0.00015095,2]
[353732020,1739999451642,-909.57,0.00015095,2]
[353732022,1739999451652,-799.61,0.00015095,2]
[353732024,1739999451662,-722.94,0.00015095,2]
[353732026,1739999451671,-929.21,0.00015095,2]
[353732028,1739999451680,-715.3,0.00015095,2]
[353732030,1739999451690,-560.6,0.00015095,2]
[353732032,1739999451700,-1857.67,0.00015095,2]
[353732034,1739999451709,-500.0,0.00015178,2]
[353732036,1739999451718,-290.71493557,0.00015178,2]
[353732038,1739999451728,-500.0,0.00015178,2]
[353732040,1739999451737,-417.6237776,0.00015178,2]
[353732042,1739999451747,-500.0,0.00015178,2]
[353732044,1739999451756,-566.59,0.00015178,2]
[353732046,1739999451766,-500.0,0.00015178,2]
[353732048,1739999451775,-500.0,0.00015178,2]
[353732050,1739999451785,-6868.74,0.00015178,2]
[353732052,1739999451794,-667.9,0.00015178,2]
[353732054,1739999451803,-2096.92,0.00015178,2]
[353732056,1739999451813,-641.26,0.00015178,2]
[353732058,1739999451822,-830.19,0.00015178,2]
[353732060,1739999451832,-680.44,0.00015178,2]
[353732062,1739999451842,-169.35,0.00015178,2]
[353732064,1739999451851,-701.69,0.00015178,2]
[353732066,1739999451860,-1416.58,0.00015178,2]
[353732068,1739999451870,-4013.9,0.00015178,2]
[353732070,1739999451880,-882.26,0.00015178,2]
[353732072,1739999451889,-1582.3,0.00015178,2]
[353732074,1739999451899,-776.39,0.00015178,2]
[353732076,1739999451909,-1639.66,0.00015178,2]
[353732078,1739999451919,-1526.88,0.00015178,2]
[353732080,1739999451928,-1005.63,0.00015178,2]
[353732082,1739999451938,-399.70384719,0.00015178,2]
[353732084,1739999451948,-858.33,0.00015178,2]
[353732086,1739999451957,-500.0,0.00015178,2]
[353732088,1739999451966,-596.87,0.00015178,2]
[353732090,1739999451976,-971.37,0.00015178,2]
[353732092,1739999451986,-2336.54,0.00015178,2]
[353732094,1739999451996,-1405.18,0.00015178,2]
[353732096,1739999452005,-2341.54,0.00015178,2]
[353732098,1739999452015,-20331.06,0.00015178,2]
[353732100,1739999452024,-909.57,0.00015178,2]
[353732102,1739999452033,-799.61,0.00015178,2]
[353732104,1739999452043,-722.94,0.00015178,2]
[353732106,1739999452052,-929.21,0.00015178,2]
[353732108,1739999452061,-715.3,0.00015178,2]
[353732110,1739999452071,-560.6,0.00015178,2]
[353732112,1739999452080,-1857.67,0.00015178,2]
[353732114,1739999452090,-500.0,0.00015222,2]
[353732116,1739999452099,-587.0,0.0001525,2]
[353732118,1739999452109,-170.8,0.0001526,2]
[353732120,1739999452119,-500.0,0.0001526,2]
[353732122,1739999452128,-626.89,0.0001526,2]
[353732124,1739999452138,-566.59,0.0001526,2]
[353732126,1739999452149,-433.08,0.0001526,2]
[353732128,1739999452159,-500.0,0.0001526,2]
[353732130,1739999452169,-6868.74,0.0001526,2]
[353732132,1739999452178,-667.9,0.0001526,2]
[353732134,1739999452188,-2096.92,0.0001526,2]
[353732136,1739999452198,-641.26,0.0001526,2]
[353732138,1739999452207,-830.19,0.0001526,2]
[353732140,1739999452216,-680.44,0.0001526,2]
[353732142,1739999452226,-701.69,0.0001526,2]
[353732144,1739999452235,-1416.58,0.0001526,2]
[353732146,1739999452245,-4013.9,0.0001526,2]
[353732148,1739999452255,-882.26,0.0001526,2]
[353732150,1739999452265,-1582.3,0.0001526,2]
[353732152,1739999452279,-776.39,0.0001526,2]
[353732154,1739999452289,-1639.66,0.0001526,2]
[353732156,1739999452299,-1526.88,0.0001526,2]
[353732158,1739999452311,-1005.63,0.0001526,2]
[353732160,1739999452321,-858.33,0.0001526,2]
[353732162,1739999452330,-500.0,0.0001526,2]
[353732164,1739999452340,-596.87,0.0001526,2]
[353732166,1739999452350,-971.37,0.0001526,2]
[353732168,1739999452360,-2336.54,0.0001526,2]
[353732170,1739999452369,-1405.18,0.0001526,2]
[353732172,1739999452378,-2341.54,0.0001526,2]
[353732174,1739999452387,-20331.06,0.0001526,2]
[353732176,1739999452397,-909.57,0.0001526,2]
[353732178,1739999452407,-799.61,0.0001526,2]
[353732180,1739999452416,-722.94,0.0001526,2]
[353732182,1739999452426,-929.21,0.0001526,2]
[353732184,1739999452435,-715.3,0.0001526,2]
[353732186,1739999452444,-560.6,0.0001526,2]
[353732188,1739999452454,-1857.67,0.0001526,2]
[353732190,1739999452463,-500.0,0.00015342,2]
[353732192,1739999452472,-566.59,0.00015342,2]
[353732194,1739999452482,-481.02,0.00015342,2]
[353732196,1739999452491,-6868.74,0.00015342,2]
[353732198,1739999452500,-667.9,0.00015342,2]
[353732200,1739999452509,-2096.92,0.00015342,2]
[353732202,1739999452519,-641.26,0.00015342,2]
[353732204,1739999452528,-830.19,0.00015342,2]
[353732206,1739999452537,-680.44,0.00015342,2]
[353732208,1739999452547,-701.69,0.00015342,2]
[353732210,1739999452556,-1416.58,0.00015342,2]
[353732212,1739999452566,-4013.9,0.00015342,2]
[353732214,1739999452575,-882.26,0.00015342,2]
[353732216,1739999452585,-1582.3,0.00015342,2]
[353732218,1739999452594,-776.39,0.00015342,2]
[353732220,1739999452604,-1639.66,0.00015342,2]
[353732222,1739999452614,-1526.88,0.00015342,2]
[353732224,1739999452623,-1005.63,0.00015342,2]
[353732226,1739999452634,-858.33,0.00015342,2]
[353732228,1739999452643,-500.0,0.00015342,2]
[353732230,1739999452653,-971.37,0.00015342,2]
[353732232,1739999452662,-596.87,0.00015342,2]
[353732234,1739999452672,-2336.54,0.00015342,2]
[353732236,1739999452681,-1405.18,0.00015342,2]
[353732238,1739999452690,-2341.54,0.00015342,2]
[353732240,1739999452700,-20331.06,0.00015342,2]
[353732242,1739999452709,-909.57,0.00015342,2]
[353732244,1739999452718,-799.61,0.00015342,2]
[353732246,1739999452727,-722.94,0.00015342,2]
[353732248,1739999452736,-929.21,0.00015342,2]
[353732250,1739999452746,-715.3,0.00015342,2]
[353732252,1739999452756,-560.6,0.00015342,2]
[353732254,1739999452766,-1857.67,0.00015342,2]
[353732256,1739999452775,-465.09871366,0.00015358,2]
[353732258,1739999452785,-500.0,0.00015421,2]
[353732260,1739999452794,-1000.0,0.00015421,2]
[353732262,1739999452804,-500.0,0.00015421,2]
[353732264,1739999452814,-500.0,0.00015421,2]
[353732266,1739999452823,-500.0,0.00015421,2]
[353732268,1739999452832,-500.0,0.00015424,2]
[353732270,1739999452842,-566.59,0.00015424,2]
[353732272,1739999452851,-6868.74,0.00015424,2]
[353732274,1739999452861,-667.9,0.00015424,2]
[353732276,1739999452870,-2096.92,0.00015424,2]
[353732278,1739999452880,-641.26,0.00015424,2]
[353732280,1739999452889,-830.19,0.00015424,2]
[353732282,1739999452898,-680.44,0.00015424,2]
[353732285,1739999452909,-701.69,0.00015424,2]
[353732286,1739999452918,-1416.58,0.00015424,2]
[353732288,1739999452928,-4013.9,0.00015424,2]
[353732291,1739999452938,-882.26,0.00015424,2]
[353732292,1739999452947,-1582.3,0.00015424,2]
[353732294,1739999452958,-776.39,0.00015424,2]
[353732297,1739999452968,-1526.88,0.00015424,2]
[353732299,1739999452978,-1639.66,0.00015424,2]
[353732300,1739999452987,-1005.63,0.00015424,2]
[353732302,1739999452997,-858.33,0.00015424,2]
[353732305,1739999453006,-500.0,0.00015424,2]
[353732307,1739999453016,-458.2874232,0.00015424,2]
[353732334,1739999453306,-389.23000006,0.00013863,2]
[353732336,1739999453318,-379.91999994,0.00013863,2]
[353732338,1739999453328,-769.15,0.00013945,2]
[353732340,1739999453337,-769.15,0.00014027,2]
[353732342,1739999453349,-769.15,0.00014109,2]
[353732344,1739999453358,-769.15,0.00014191,2]
[353732346,1739999453367,-769.15,0.00014273,2]
[353732348,1739999453376,-769.15,0.00014356,2]
[353732350,1739999453386,-769.15,0.00014438,2]
[353732352,1739999453395,-769.15,0.0001452,2]
[353732354,1739999453404,-769.15,0.00014602,2]
[353732355,1739999453413,-513.0825768,0.00015424,2]
[353732357,1739999453423,-596.87,0.00015424,2]
[353732359,1739999453432,-2336.54,0.00015424,2]
[353732362,1739999453442,-1405.18,0.00015424,2]
[353732364,1739999453451,-2341.54,0.00015424,2]
[353732366,1739999453461,-20331.06,0.00015424,2]
[353732368,1739999453471,-909.57,0.00015424,2]
[353732369,1739999453480,-799.61,0.00015424,2]
[353732371,1739999453490,-722.94,0.00015424,2]
[353732373,1739999453499,-929.21,0.00015424,2]
[353732375,1739999453508,-715.3,0.00015424,2]
[353732377,1739999453517,-560.6,0.00015424,2]
[353732379,1739999453527,-1857.67,0.00015424,2]
[353732381,1739999453537,-620.77413387,0.00015484,2]
[353732383,1739999453546,-500.0,0.00015506,2]
[353732385,1739999453556,-566.59,0.00015506,2]
[353732387,1739999453565,-6868.74,0.00015506,2]
[353732389,1739999453574,-667.9,0.00015506,2]
[353732391,1739999453584,-2096.92,0.00015506,2]
[353732393,1739999453593,-641.26,0.00015506,2]
[353732395,1739999453603,-830.19,0.00015506,2]
[353732397,1739999453612,-680.44,0.00015506,2]
[353732399,1739999453622,-701.69,0.00015506,2]
[353732401,1739999453631,-1416.58,0.00015506,2]
[353732403,1739999453640,-4013.9,0.00015506,2]
[353732404,1739999453649,-882.26,0.00015506,2]
[353732405,1739999453660,-1582.3,0.00015506,2]
[353732407,1739999453669,-776.39,0.00015506,2]
[353732409,1739999453678,-1526.88,0.00015506,2]
[353732410,1739999453688,-1639.66,0.00015506,2]
[353732412,1739999453697,-1005.63,0.00015506,2]
[353732414,1739999453706,-858.33,0.00015506,2]
[353732416,1739999453716,-174.49,0.00015506,2]
[353732418,1739999453725,-971.37,0.00015506,2]
[353732420,1739999453737,-596.87,0.00015506,2]
[353732422,1739999453745,-2336.54,0.00015506,2]
[353732424,1739999453754,-1405.18,0.00015506,2]
[353732426,1739999453763,-2341.54,0.00015506,2]
[353732427,1739999453771,-20331.06,0.00015506,2]
[353732429,1739999453780,-909.57,0.00015506,2]
[353732431,1739999453788,-799.61,0.00015506,2]
[353732433,1739999453797,-722.94,0.00015506,2]
[353732435,1739999453805,-929.21,0.00015506,2]
[353732436,1739999453815,-715.3,0.00015506,2]
[353732437,1739999453824,-560.6,0.00015506,2]
[353732438,1739999453834,-1857.67,0.00015506,2]
[353732439,1739999453843,-620.77413387,0.00015584,2]
[353732440,1739999453853,-189.39229704,0.00015589,2]
[353732441,1739999453863,-566.76649331,0.00015589,2]
[353732442,1739999453872,-6868.78589072,0.00015589,2]
[353732443,1739999453992,-668.12100684,0.00015589,2]
[353732444,1739999454002,-2097.04,0.00015589,2]
[353732445,1739999454012,-641.36641406,0.00015589,2]
[353732446,1739999454022,-830.31632677,0.00015589,2]
[353732447,1739999454031,-680.61716264,0.00015589,2]
[353732448,1739999454040,-701.79,0.00015589,2]
[353732449,1739999454050,-1416.77,0.00015589,2]
[353732450,1739999454059,-882.38799085,0.00015589,2]
[353732451,1739999454069,-4013.93,0.00015589,2]
[353732452,1739999454079,-1582.45,0.00015589,2]
[353732453,1739999454088,-776.5571738,0.00015589,2]
[353732454,1739999454098,-1527.05110362,0.00015589,2]
[353732455,1739999454107,-1639.84225558,0.00015589,2]
[353732456,1739999454117,-1005.86663562,0.00015589,2]
[353732457,1739999454126,-858.45244067,0.00015589,2]
[353732458,1739999454135,-971.42,0.00015589,2]
[353732459,1739999454144,-596.96546464,0.00015589,2]
[353732460,1739999454154,-2336.59,0.00015589,2]
[353732461,1739999454163,-1405.19947542,0.00015589,2]
[353732462,1739999454172,-2341.57070958,0.00015589,2]
[353732463,1739999454182,-20331.22662734,0.00015589,2]
[353732464,1739999454191,-909.75,0.00015589,2]
[353732465,1739999454201,-799.73188345,0.00015589,2]
[353732466,1739999454210,-723.01,0.00015589,2]
[353732467,1739999454220,-929.33,0.00015589,2]
[353732468,1739999454229,-715.30055816,0.00015589,2]
[353732469,1739999454238,-560.7457394,0.00015589,2]
[353732470,1739999454248,-1857.80048065,0.00015589,2]
[353732471,1739999454257,-620.77413387,0.00015684,2]
[353732472,1739999454269,-620.77413387,0.00015784,2]
[353732473,1739999454282,-160.25484314,0.00015786,2]
[353732474,1739999454291,-620.77413387,0.00015884,2]
[353732475,1739999454300,-620.77413387,0.00015984,2]
[353732476,1739999454309,-3000.0,0.00016,2]
[353732477,1739999454321,-3000.0,0.0001601,2]
[353732478,1739999454331,-3000.0,0.0001602,2]
[353732479,1739999454340,-3000.0,0.0001603,2]
[353732480,1739999454354,-3000.0,0.0001604,2]
[353732481,1739999454363,-3000.0,0.0001605,2]
[353732482,1739999454372,-3000.0,0.0001606,2]
[353732483,1739999454382,-3000.0,0.0001607,2]
[353732484,1739999454392,-3000.0,0.0001608,2]
[353732485,1739999454401,-620.77413387,0.00016084,2]
[353732486,1739999454411,-3000.0,0.0001609,2]
[353732487,1739999454421,-3000.0,0.000161,2]
[353732489,1739999454430,-3000.0,0.0001611,2]
[353732491,1739999454439,-3000.0,0.0001612,2]
[353732493,1739999454448,-465.00493568,0.00016126,2]
[353732495,1739999454458,-3000.0,0.0001613,2]
[353732497,1739999454467,-3000.0,0.0001614,2]
[353732499,1739999454476,-164.29062,0.00016149,2]